fUSD/lending_fUSD_20260115
["ID","MTS","AMOUNT","RATE_DAILY","PERIOD"]
[402064567,1768503067668,-500.0,0.0003589,10]
[402064568,1768503067680,-500.0,0.0003589,10]
[402064569,1768503067691,-1933.97,0.0003589,10]
[402064570,1768503067700,-1075.65,0.0003589,10]
[402064571,1768503067710,-1367.5,0.0003589,10]
[402064572,1768503067720,-500.0,0.0003589,10]
[402064573,1768503067729,-500.0,0.0003589,10]
[402064574,1768503067739,-500.0,0.0003589,10]
[402064575,1768503067748,-551.33,0.0003589,10]
[402064576,1768503067758,-500.0,0.0003589,10]
[402064577,1768503067768,-500.0,0.0003589,10]
[402064578,1768503067783,-500.0,0.0003589,10]
[402064579,1768503067794,-500.0,0.0003589,10]
[402064580,1768503067804,-500.0,0.0003589,10]
[402064581,1768503067815,-641.61,0.0003589,10]
[402064582,1768503067824,-500.0,0.0003589,10]
[402064583,1768503067834,-500.0,0.0003589,10]
[402064584,1768503067846,-911.57,0.0003589,10]
[402064585,1768503067855,-500.0,0.0003589,10]
[402064586,1768503067865,-739.18,0.0003589,10]
[402064587,1768503067874,-639.28,0.0003589,10]
[402064588,1768503067884,-500.0,0.0003589,10]
[402064589,1768503067894,-645.12,0.0003589,10]
[402064590,1768503067988,-500.0,0.0003589,10]
[402064591,1768503067998,-500.0,0.0003589,10]
[402064592,1768503068008,-1489.76,0.0003589,10]
[402064593,1768503068017,-828.51,0.0003589,10]
[402064594,1768503068027,-434.94142596,0.0003589,10]
[402064595,1768503068036,-500.0,0.0003589,10]
[402064596,1768503068046,-881.04,0.0003589,10]
[402064597,1768503068056,-500.0,0.0003589,10]
[402064598,1768503068065,-500.0,0.0003589,10]
[402064599,1768503068074,-680.45,0.0003589,10]
[402064600,1768503068084,-500.0,0.0003589,10]
[402064601,1768503068094,-500.0,0.0003589,10]
[402064602,1768503068103,-1176.55,0.0003589,10]
[402064603,1768503068112,-500.0,0.0003589,10]
[402064604,1768503068121,-500.0,0.0003589,10]
[402064605,1768503068131,-500.0,0.0003589,10]
[402064606,1768503068140,-717.66,0.0003589,10]
[402064607,1768503068150,-500.0,0.0003589,10]
[402064608,1768503068160,-500.0,0.0003589,10]
[402064609,1768503068169,-577.20272089,0.0003589,10]
[402064610,1768503068180,-500.0,0.0003589,10]
[402064611,1768503068190,-500.0,0.0003589,10]
[402064612,1768503068199,-500.0,0.0003589,10]
[402064613,1768503068209,-500.0,0.0003589,10]
[402064614,1768503068218,-323.68694555,0.0003589,10]
[402064615,1768503068228,-500.0,0.0003589,10]
[402064616,1768503068238,-705.8,0.0003589,10]
[402064617,1768503068248,-500.0,0.0003589,10]
[402064618,1768503068258,-500.0,0.0003589,10]
[402064619,1768503068268,-500.0,0.0003589,10]
[402064620,1768503068277,-1153.2,0.0003589,10]
[402064621,1768503068286,-500.0,0.0003589,10]
[402064622,1768503068297,-858.9,0.0003589,10]
[402064623,1768503068307,-647.82,0.0003589,10]
[402064624,1768503068317,-599.54,0.0003589,10]
[402064625,1768503068327,-1315.36276091,0.0003589,10]
[402064626,1768503068336,-500.0,0.0003589,10]
[402064627,1768503068347,-500.0,0.0003589,10]
[402064628,1768503068357,-500.0,0.0003589,10]
[402064629,1768503068367,-500.0,0.0003589,10]
[402064630,1768503068376,-500.0,0.0003589,10]
[402064631,1768503068386,-500.0,0.0003589,10]
[402064632,1768503068396,-816.79,0.0003589,10]
[402064633,1768503068406,-919.98,0.0003589,10]
[402064634,1768503068415,-500.0,0.0003589,10]
[402064635,1768503068424,-590.19,0.0003589,10]
[402064636,1768503068434,-500.0,0.0003589,10]
[402064637,1768503068443,-500.0,0.0003589,10]
[402064638,1768503068453,-718.19,0.0003589,10]
[402064639,1768503068463,-915.54,0.0003589,10]
[402064640,1768503068472,-500.0,0.0003589,10]
[402064641,1768503068482,-545.36,0.0003589,10]
[402064642,1768503068492,-500.0,0.0003589,10]
[402064643,1768503068501,-500.0,0.0003589,10]
[402064644,1768503068510,-500.0,0.0003589,10]
[402064645,1768503068520,-624.6,0.0003589,120]
[402064646,1768503068530,-500.0,0.0003589,10]
[402064647,1768503068540,-500.0,0.0003589,10]
[402064648,1768503068549,-565.52,0.0003589,10]
[402064649,1768503068559,-500.0,0.0003589,10]
[402064650,1768503068568,-500.0,0.0003589,10]
[402064651,1768503068577,-500.0,0.0003589,10]
[402064652,1768503068587,-500.0,0.0003589,10]
[402064653,1768503068598,-500.0,0.0003589,2]
[402064654,1768503068607,-151.0,0.0003589,30]
[402064655,1768503068616,-789.62,0.0003589,10]
[402064656,1768503068626,-500.0,0.0003589,10]
[402064657,1768503068635,-1360.5,0.0003589,10]
[402064658,1768503068644,-500.0,0.0003589,10]
[402064659,1768503068653,-500.0,0.0003589,10]
[402064660,1768503068663,-541.89,0.0003589,10]
[402064661,1768503068672,-871.27,0.0003589,10]
[402064662,1768503068682,-500.0,0.0003589,10]
[402064663,1768503068694,-1121.18,0.0003589,10]
[402064664,1768503068707,-3236.58,0.0003589,10]
[402064665,1768503068718,-500.0,0.0003589,10]
[402064666,1768503068729,-500.0,0.0003589,10]
[402064667,1768503068739,-500.0,0.0003589,10]
[402064668,1768503068750,-1659.86,0.0003589,10]
[402064669,1768503068759,-500.0,0.0003589,10]
[402064670,1768503068771,-151.0,0.0003589,31]
[402064671,1768503068782,-518.84,0.0003589,10]
[402064672,1768503068792,-1978.3481,0.0003607,74]
[402064673,1768503068802,-1978.34811,0.0003607,74]
[402064674,1768503068813,-1978.3481,0.0003607,74]
[402064675,1768503068823,-1978.3481,0.0003607,74]
[402064676,1768503068833,-1978.3481,0.0003607,74]
[402064677,1768503068846,-1978.3481,0.0003607,74]
[402064678,1768503068855,-150.0,0.00036089,2]
[402064679,1768503068865,-800.0,0.00036108,7]
[402064680,1768503068875,-200.0,0.00036146,10]
[402064681,1768503068886,-200.0,0.00036162,7]
[402064682,1768503068896,-500.0,0.00036163,10]
[402064683,1768503068906,-500.0,0.00036163,10]
[402064684,1768503068916,-500.0,0.00036163,10]
[402064685,1768503068926,-500.0,0.00036163,15]
[402064686,1768503068935,-341.15949194,0.00036163,15]
[402064687,1768503068946,-500.0,0.00036163,15]
[402064688,1768503068956,-500.0,0.00036163,15]
[402064689,1768503068965,-500.0,0.00036163,15]
[402064690,1768503068976,-156.75586223,0.00036163,15]
[402064691,1768503068988,-500.0,0.00036163,15]
[402064692,1768503068997,-500.0,0.00036163,15]
[402064693,1768503069007,-500.0,0.00036163,15]
[402064694,1768503069016,-500.0,0.00036163,15]
[402064695,1768503069025,-500.0,0.00036163,15]
[402064696,1768503069034,-500.0,0.00036163,15]
[402064697,1768503069044,-500.0,0.00036163,15]
[402064698,1768503069054,-500.0,0.00036163,15]
[402064699,1768503069065,-500.0,0.00036163,15]
[402064700,1768503069075,-500.0,0.00036163,15]
[402064701,1768503069084,-356.23744711,0.00036163,15]
[402064702,1768503069094,-500.0,0.00036163,15]
[402064703,1768503069103,-500.0,0.00036163,15]
[402064704,1768503069112,-500.0,0.00036163,15]
[402064705,1768503069122,-500.0,0.00036163,15]
[402064706,1768503069131,-500.0,0.00036163,15]
[402064707,1768503069140,-258.66158399,0.00036163,15]
[402064708,1768503069150,-649.05513429,0.00036163,15]
[402064709,1768503069159,-500.0,0.00036163,15]
[402064710,1768503069170,-500.0,0.00036163,15]
[402064711,1768503069180,-500.0,0.00036163,15]
[402064712,1768503069190,-500.0,0.00036163,15]
[402064713,1768503069201,-500.0,0.00036163,15]
[402064714,1768503069211,-500.0,0.00036163,15]
[402064715,1768503069220,-500.0,0.00036163,15]
[402064716,1768503069230,-500.0,0.00036163,15]
[402064717,1768503069240,-500.0,0.00036163,15]
[402064718,1768503069250,-500.0,0.00036163,15]
[402064719,1768503069260,-500.0,0.00036163,15]
[402064720,1768503069270,-500.0,0.00036163,15]
[402064721,1768503069280,-500.0,0.00036163,15]
[402064722,1768503069289,-500.0,0.00036163,15]
[402064723,1768503069299,-500.0,0.00036163,15]
[402064724,1768503069309,-786.12,0.00036163,10]
[402064725,1768503069319,-4152.11,0.00036163,10]
[402064726,1768503069329,-500.0,0.00036164,10]
[402064727,1768503069339,-500.0,0.00036164,10]
[402064728,1768503069350,-155.0,0.00036164,7]
[402064729,1768503069360,-155.0,0.00036164,7]
[402064730,1768503069371,-155.0,0.00036164,7]
[402064731,1768503069381,-500.0,0.00036164,10]
[402064732,1768503069391,-500.0,0.00036164,10]
[402064733,1768503069401,-500.0,0.00036164,10]
[402064734,1768503069412,-500.0,0.00036164,10]
[402064735,1768503069422,-500.0,0.00036164,10]
[402064736,1768503069432,-500.0,0.00036164,10]
[402064737,1768503069442,-500.0,0.00036164,10]
[402064738,1768503069452,-500.0,0.00036164,10]
[402064739,1768503069462,-500.0,0.00036164,10]
[402064740,1768503069472,-500.0,0.00036164,10]
[402064741,1768503069482,-500.0,0.00036164,10]
[402064742,1768503069493,-500.0,0.00036164,10]
[402064743,1768503069504,-500.0,0.00036164,10]
[402064744,1768503069515,-500.0,0.00036164,10]
[402064745,1768503069527,-500.0,0.00036164,7]
[402064746,1768503069537,-500.0,0.00036164,10]
[402064747,1768503069546,-500.0,0.00036164,10]
[402064748,1768503069556,-500.0,0.00036164,10]
[402064749,1768503069566,-500.0,0.00036164,10]
[402064750,1768503069576,-552.2,0.00036164,10]
[402064751,1768503069585,-500.0,0.00036164,10]
[402064752,1768503069596,-500.0,0.00036164,10]
[402064753,1768503069606,-500.0,0.00036164,10]
[402064754,1768503069616,-990.64,0.00036164,10]
[402064755,1768503069625,-500.0,0.00036164,10]
[402064756,1768503069636,-500.0,0.00036164,10]
[402064757,1768503069646,-500.0,0.00036164,10]
[402064758,1768503069655,-655.6,0.00036164,10]
[402064759,1768503069665,-791.73,0.00036164,10]
[402064760,1768503069674,-500.0,0.00036164,10]
[402064761,1768503069684,-500.0,0.00036164,10]
[402064762,1768503069694,-660.77,0.00036164,10]
[402064763,1768503069704,-151.0,0.00036164,31]
[402064764,1768503069714,-524.38,0.00036164,10]
[402064765,1768503069724,-608.52,0.00036164,10]
[402064766,1768503069733,-500.0,0.00036164,10]
[402064767,1768503069743,-500.0,0.00036164,10]
[402064768,1768503069752,-500.0,0.00036164,10]
[402064769,1768503069763,-500.0,0.00036164,10]
[402064770,1768503069776,-500.0,0.00036164,10]
[402064771,1768503069786,-561.76871386,0.00036164,10]
[402064772,1768503069796,-515.79638869,0.00036164,10]
[402064773,1768503069807,-500.0,0.00036164,10]
[402064774,1768503069818,-500.0,0.00036164,10]
[402064775,1768503069827,-500.0,0.00036164,10]
[402064776,1768503069837,-500.0,0.00036164,10]
[402064777,1768503069850,-769.29,0.00036164,10]
[402064778,1768503069860,-500.0,0.00036164,10]
[402064779,1768503069870,-500.0,0.00036164,10]
[402064780,1768503069881,-500.0,0.00036164,10]
[402064781,1768503069891,-961.15,0.00036164,10]
[402064782,1768503069901,-655.4,0.00036164,10]
[402064783,1768503069911,-500.0,0.00036164,10]
[402064784,1768503069921,-500.0,0.00036164,10]
[402064785,1768503069930,-500.0,0.00036164,10]
[402064786,1768503069940,-500.0,0.00036164,10]
[402064787,1768503069949,-500.0,0.00036164,10]
[402064788,1768503069959,-500.0,0.00036164,10]
[402064789,1768503069968,-500.0,0.00036164,10]
[402064790,1768503069978,-500.0,0.00036164,10]
[402064791,1768503069987,-680.38,0.00036164,10]
[402064792,1768503069998,-542.51007756,0.00036164,10]
[402064793,1768503070008,-500.0,0.00036164,10]
[402064794,1768503070019,-500.0,0.00036164,10]
[402064795,1768503070028,-500.0,0.00036164,10]
[402064796,1768503070038,-500.0,0.00036164,10]
[402064797,1768503070048,-621.45,0.00036164,10]
[402064798,1768503070057,-500.0,0.00036164,10]
[402064799,1768503070067,-301.77666693,0.00036164,10]
[402064800,1768503070076,-500.0,0.00036164,10]
[402064801,1768503070086,-630.08,0.00036164,10]
[402064802,1768503070096,-500.0,0.00036164,10]
[402064803,1768503070105,-500.0,0.00036164,10]
[402064804,1768503070114,-500.0,0.00036164,10]
[402064805,1768503070123,-500.0,0.00036164,10]
[402064806,1768503070132,-756.1,0.00036164,10]
[402064807,1768503070142,-500.0,0.00036164,10]
[402064808,1768503070151,-500.0,0.00036164,10]
[402064809,1768503070160,-500.0,0.00036164,10]
[402064810,1768503070169,-661.96,0.00036164,10]
[402064811,1768503070178,-500.0,0.00036164,10]
[402064812,1768503070188,-506.68,0.00036164,10]
[402064813,1768503070198,-500.0,0.00036164,10]
[402064814,1768503070207,-500.0,0.00036164,10]
[402064815,1768503070217,-500.0,0.00036164,10]
[402064816,1768503070226,-500.0,0.00036164,10]
[402064817,1768503070236,-500.0,0.00036164,10]
[402064818,1768503070246,-500.0,0.00036164,10]
[402064819,1768503070256,-500.0,0.00036164,10]
[402064820,1768503070266,-500.0,0.00036164,10]
[402064821,1768503070275,-549.88686106,0.00036164,10]
[402064822,1768503070285,-500.0,0.00036164,10]
[402064823,1768503070294,-500.0,0.00036164,10]
[402064824,1768503070303,-344.46991761,0.00036164,10]
[402064825,1768503070312,-500.0,0.00036164,10]
[402064826,1768503070321,-500.0,0.00036164,10]
[402064827,1768503070330,-726.52,0.00036164,10]
[402064828,1768503070339,-671.56,0.00036164,10]
[402064829,1768503070349,-500.0,0.00036164,10]
[402064830,1768503070359,-500.0,0.00036164,10]
[402064831,1768503070368,-512.96,0.00036164,10]
[402064832,1768503070377,-509.96,0.00036164,10]
[402064833,1768503070386,-500.0,0.00036164,10]
[402064834,1768503070395,-500.0,0.00036164,10]
[402064835,1768503070405,-511.0,0.00036164,10]
[402064836,1768503070414,-500.0,0.00036164,10]
[402064837,1768503070424,-500.0,0.00036164,10]
[402064838,1768503070433,-500.0,0.00036164,10]
[402064839,1768503070442,-544.3,0.00036164,10]
[402064840,1768503070451,-477.14776419,0.00036164,10]
[402064841,1768503070460,-252.46478277,0.00036164,10]
[402064842,1768503070470,-500.0,0.00036164,10]
[402064843,1768503070479,-508.49,0.00036164,10]
[402064844,1768503070488,-500.0,0.00036164,10]
[402064845,1768503070498,-500.0,0.00036164,10]
[402064846,1768503070507,-500.0,0.00036164,10]
[402064847,1768503070517,-500.0,0.00036164,10]
[402064848,1768503070526,-976.71,0.00036164,10]
[402064849,1768503070536,-438.14989937,0.00036164,10]
[402064850,1768503070545,-500.0,0.00036164,10]
[402064851,1768503070555,-500.0,0.00036164,10]
[402064852,1768503070564,-500.0,0.00036164,10]
[402064853,1768503070574,-500.0,0.00036164,10]
[402064854,1768503070584,-500.0,0.00036164,10]
[402064855,1768503070595,-500.0,0.00036164,10]
[402064856,1768503070604,-691.53,0.00036164,10]
[402064857,1768503070614,-500.0,0.00036164,10]
[402064858,1768503070623,-500.0,0.00036164,10]
[402064859,1768503070633,-500.0,0.00036164,10]
[402064860,1768503070642,-500.0,0.00036164,10]
[402064861,1768503070652,-700.54,0.00036164,10]
[402064862,1768503070661,-500.0,0.00036164,10]
[402064863,1768503070671,-1029.54,0.00036164,10]
[402064864,1768503070681,-776.08,0.00036164,10]
[402064865,1768503070691,-791.83,0.00036164,10]
[402064866,1768503070700,-500.0,0.00036164,10]
[402064867,1768503070710,-572.19,0.00036164,10]
[402064868,1768503070721,-500.0,0.00036164,10]
[402064869,1768503070731,-500.0,0.00036164,10]
[402064870,1768503070741,-500.0,0.00036164,10]
[402064871,1768503070751,-500.0,0.00036164,10]
[402064872,1768503070761,-646.82,0.00036164,10]
[402064873,1768503070775,-1024.61,0.00036164,10]
[402064874,1768503070785,-500.0,0.00036164,2]
[402064875,1768503070795,-500.0,0.00036164,10]
[402064876,1768503070805,-500.0,0.00036164,10]
[402064877,1768503070816,-1068.28,0.00036164,10]
[402064878,1768503070826,-500.0,0.00036164,10]
[402064879,1768503070835,-500.0,0.00036164,10]
[402064880,1768503070846,-979.08,0.00036164,10]
[402064881,1768503070856,-823.87,0.00036164,10]
[402064882,1768503070866,-567.11,0.00036164,10]
[402064883,1768503070876,-570.32,0.00036164,10]
[402064884,1768503070886,-557.87,0.00036164,2]
[402064885,1768503070896,-519.06,0.00036164,10]
[402064886,1768503070905,-500.0,0.00036164,10]
[402064887,1768503070915,-749.96,0.00036164,10]
[402064888,1768503070924,-609.87143489,0.00036164,10]
[402064889,1768503070933,-838.14,0.00036164,10]
[402064890,1768503070943,-788.5,0.00036164,10]
[402064891,1768503070953,-1071.94,0.00036164,10]
[402064892,1768503070962,-500.0,0.00036164,10]
[402064893,1768503070972,-500.0,0.00036164,10]
[402064894,1768503070981,-854.37,0.00036164,10]
[402064895,1768503070991,-860.93,0.00036164,10]
[402064896,1768503071000,-500.0,0.00036164,10]
[402064897,1768503071010,-500.0,0.00036164,10]
[402064898,1768503071020,-500.0,0.00036164,10]
[402064899,1768503071031,-500.0,0.00036164,10]
[402064900,1768503071041,-500.0,0.00036164,10]
[402064901,1768503071051,-500.0,0.00036164,10]
[402064902,1768503071060,-500.0,0.00036164,10]
[402064903,1768503071070,-500.0,0.00036164,10]
[402064904,1768503071080,-663.26,0.00036164,10]
[402064905,1768503071090,-500.0,0.00036164,10]
[402064906,1768503071100,-568.5,0.00036164,10]
[402064907,1768503071110,-500.0,0.00036164,10]
[402064908,1768503071120,-933.24,0.00036164,10]
[402064909,1768503071129,-699.38,0.00036164,10]
[402064910,1768503071139,-208.59016971,0.00036164,10]
[402064911,1768503071149,-500.0,0.00036164,10]
[402064912,1768503071158,-500.0,0.00036164,10]
[402064913,1768503071168,-631.46,0.00036164,10]
[402064914,1768503071178,-500.0,0.00036164,10]
[402064915,1768503071188,-500.0,0.00036164,10]
[402064916,1768503071197,-500.0,0.00036164,10]
[402064917,1768503071207,-529.8,0.00036164,10]
[402064918,1768503071217,-282.24931881,0.00036164,10]
[402064919,1768503071735,-217.75068119,0.00036164,10]
[402064920,1768503071745,-502.76904323,0.00036164,10]
[402064921,1768503071756,-189.69976313,0.00036164,10]
[402064922,1768503071771,-310.30023687,0.00036164,10]
[402064923,1768503071786,-558.50951119,0.00036164,10]
[402064924,1768503071797,-500.0,0.00036164,10]
[402064925,1768503071807,-644.57,0.00036164,10]
[402064926,1768503071818,-500.0,0.00036164,10]
[402064927,1768503071828,-500.0,0.00036164,10]
[402064928,1768503071838,-500.0,0.00036164,10]
[402064929,1768503071849,-500.0,0.00036164,10]
[402064930,1768503071860,-719.2,0.00036164,10]
[402064931,1768503071869,-500.0,0.00036164,10]
[402064932,1768503071879,-500.0,0.00036164,10]
[402064933,1768503071889,-887.83,0.00036164,10]
[402064934,1768503071899,-500.0,0.00036164,10]
[402064935,1768503071908,-500.0,0.00036164,10]
[402064936,1768503071918,-500.0,0.00036164,10]
[402064937,1768503071928,-500.0,0.00036164,10]
[402064938,1768503071937,-25.59103194,0.00036164,10]
[402064939,1768503071950,-474.40896806,0.00036164,10]
[402064940,1768503071960,-500.0,0.00036164,10]
[402064941,1768503071969,-565.2,0.00036164,10]
[402064942,1768503071979,-500.0,0.00036164,10]
[402064943,1768503071988,-759.87,0.00036164,10]
[402064944,1768503071997,-500.0,0.00036164,10]
[402064945,1768503072007,-416.82022894,0.00036164,10]
[402064946,1768503072504,-269.19161654,0.00017112,2]
[402064947,1768503072519,-153.13297587,0.00017112,2]
[402064948,1768503072529,-83.17977106,0.00036164,10]
[402064949,1768503072539,-92.39937343,0.00036164,10]
[402064950,1768503072562,-777.89062657,0.00036164,10]
[402064951,1768503072571,-749.91,0.00036164,10]
[402064952,1768503072580,-500.0,0.00036164,10]
[402064953,1768503072590,-1205.31,0.00036164,10]
[402064954,1768503072601,-500.0,0.00036164,10]
[402064955,1768503072610,-328.38,0.00036164,10]
[402064956,1768503072619,-1258.76,0.00036164,10]
[402064957,1768503072629,-500.0,0.00036164,10]
[402064958,1768503072639,-500.0,0.00036164,10]
[402064959,1768503072649,-500.0,0.00036164,10]
[402064960,1768503072659,-500.0,0.00036164,10]
[402064961,1768503072668,-500.0,0.00036164,10]
[402064962,1768503072678,-697.57,0.00036164,10]
[402064963,1768503072688,-585.05,0.00036164,10]
[402064964,1768503072698,-897.42,0.00036164,10]
[402064965,1768503072707,-500.0,0.00036164,10]
[402064966,1768503072720,-500.0,0.00036164,10]
[402064967,1768503072730,-500.0,0.00036164,10]
[402064968,1768503072740,-500.0,0.00036164,10]
[402064969,1768503072750,-500.0,0.00036164,10]
[402064970,1768503072760,-641.99,0.00036164,10]
[402064971,1768503072773,-597.58,0.00036164,10]
[402064972,1768503072783,-500.0,0.00036164,10]
[402064973,1768503072793,-500.0,0.00036164,10]
[402064974,1768503072803,-500.0,0.00036164,10]
[402064975,1768503072814,-522.33141753,0.00036164,10]
[402064976,1768503072823,-500.0,0.00036164,10]
[402064977,1768503072833,-500.0,0.00036164,10]
[402064978,1768503072843,-790.79,0.00036164,10]
[402064979,1768503072854,-325.84295825,0.00036164,10]
[402064980,1768503072864,-500.0,0.00036164,10]
[402064981,1768503072874,-741.3,0.00036164,10]
[402064982,1768503072883,-160.040885,0.00036164,10]
[402064983,1768503072892,-1038.12,0.00036164,10]
[402064984,1768503072902,-503.14,0.00036164,10]
[402064985,1768503072911,-500.0,0.00036164,10]
[402064986,1768503072923,-826.33,0.00036164,10]
[402064987,1768503072933,-156.652894,0.00036164,10]
[402064988,1768503072942,-259.11769,0.00036164,10]
[402064989,1768503072951,-738.86,0.00036164,10]
[402064990,1768503072961,-500.0,0.00036164,10]
[402064991,1768503072970,-500.0,0.00036164,10]
[402064992,1768503072980,-375.08225015,0.00036164,10]
[402064993,1768503072989,-500.0,0.00036164,10]
[402064994,1768503072999,-500.0,0.00036164,10]
[402064995,1768503073009,-500.0,0.00036164,10]
[402064996,1768503073019,-500.0,0.00036164,10]
[402064997,1768503073028,-500.0,0.00036164,10]
[402064998,1768503073037,-594.44079265,0.00036164,10]
[402064999,1768503073047,-500.0,0.00036164,10]
[402065000,1768503073058,-500.0,0.00036164,10]
[402065001,1768503073069,-500.0,0.00036164,10]
[402065002,1768503073078,-500.0,0.00036164,10]
[402065003,1768503073088,-627.23,0.00036164,10]
[402065004,1768503073098,-500.0,0.00036164,10]
[402065005,1768503073107,-500.0,0.00036164,10]
[402065006,1768503073116,-687.56,0.00036164,10]
[402065007,1768503073125,-500.0,0.00036164,10]
[402065008,1768503073134,-500.0,0.00036164,10]
[402065009,1768503073144,-605.55069587,0.00036164,10]
[402065010,1768503073153,-1126.89,0.00036164,10]
[402065011,1768503073162,-500.0,0.00036164,10]
[402065012,1768503073172,-967.55,0.00036164,10]
[402065013,1768503073182,-500.0,0.00036164,10]
[402065014,1768503073191,-500.0,0.00036164,10]
[402065015,1768503073201,-500.0,0.00036164,10]
[402065016,1768503073210,-500.0,0.00036164,10]
[402065017,1768503073219,-600.01,0.00036164,10]
[402065018,1768503073228,-500.0,0.00036164,10]
[402065019,1768503073238,-500.0,0.00036164,10]
[402065020,1768503073247,-500.0,0.00036164,10]
[402065021,1768503073257,-500.0,0.00036164,10]
[402065022,1768503073266,-500.0,0.00036164,10]
[402065023,1768503073275,-500.0,0.00036164,10]
[402065024,1768503073285,-500.0,0.00036164,10]
[402065025,1768503073295,-500.0,0.00036164,10]
[402065026,1768503073313,-500.0,0.00036164,10]
[402065027,1768503073325,-832.97,0.00036164,10]
[402065028,1768503073335,-500.0,0.00036164,10]
[402065029,1768503073344,-803.06,0.00036164,10]
[402065030,1768503073355,-500.0,0.00036164,10]
[402065031,1768503073364,-911.54,0.00036164,10]
[402065032,1768503073374,-500.0,0.00036164,10]
[402065033,1768503073384,-500.0,0.00036164,10]
[402065034,1768503073394,-660.17,0.00036164,10]
[402065035,1768503073403,-541.13,0.00036164,10]
[402065036,1768503073413,-500.0,0.00036164,10]
[402065037,1768503073423,-500.0,0.00036164,10]
[402065038,1768503073432,-500.0,0.00036164,10]
[402065039,1768503073442,-500.0,0.00036164,10]
[402065040,1768503073452,-500.0,0.00036164,10]
[402065041,1768503073462,-696.38,0.00036164,10]
[402065042,1768503073471,-500.0,0.00036164,10]
[402065043,1768503073481,-955.0,0.00036164,10]
[402065044,1768503073491,-500.0,0.00036164,10]
[402065045,1768503073500,-674.14,0.00036164,10]
[402065046,1768503073510,-500.0,0.00036164,10]
[402065047,1768503073519,-500.0,0.00036164,10]
[402065048,1768503073530,-585.65,0.00036164,10]
[402065049,1768503073539,-500.0,0.00036164,10]
[402065050,1768503073549,-1000.53,0.00036164,10]
[402065051,1768503073559,-555.04,0.00036164,10]
[402065052,1768503073568,-500.0,0.00036164,10]
[402065053,1768503073578,-500.0,0.00036164,10]
[402065054,1768503073589,-636.53,0.00036164,10]
[402065055,1768503073599,-875.7,0.00036164,10]
[402065056,1768503073608,-821.78,0.00036164,10]
[402065057,1768503073618,-500.0,0.00036164,10]
[402065058,1768503073628,-500.0,0.00036164,10]
[402065059,1768503073638,-500.0,0.00036164,10]
[402065060,1768503073647,-609.11,0.00036164,10]
[402065061,1768503073657,-500.0,0.00036164,10]
[402065062,1768503073667,-500.0,0.00036164,10]
[402065063,1768503073678,-762.07,0.00036164,10]
[402065064,1768503073688,-500.0,0.00036164,10]
[402065065,1768503073698,-500.0,0.00036164,10]
[402065066,1768503073708,-696.18,0.00036164,10]